fUST/lending_fUST_20240621
["ID","MTS","AMOUNT","RATE_DAILY","PERIOD"]
[330021962,1718945440101,-500.0,0.00054794,120]
[330021963,1718945440111,-667.28,0.00054794,120]
[330021964,1718945440122,-1382.84,0.00054794,120]
[330021966,1718945440131,-1613.29,0.00054794,120]
[330021967,1718945440140,-500.0,0.00054794,120]
[330021968,1718945440150,-510.68339046,0.00054794,120]
[330021969,1718945440160,-500.0,0.00054794,120]
[330021970,1718945440169,-535.28090366,0.00054794,120]
[330021971,1718945440179,-500.0,0.00054794,120]
[330021972,1718945440188,-504.65462272,0.00054794,120]
[330021973,1718945440198,-500.0,0.00054794,120]
[330021974,1718945440208,-501.09377392,0.00054794,120]
[330021975,1718945440217,-500.0,0.00054794,120]
[330021976,1718945440226,-500.0,0.00054794,120]
[330021977,1718945440236,-500.0,0.00054794,120]
[330021978,1718945440245,-504.59,0.00054794,120]
[330021979,1718945440255,-500.0,0.00054794,120]
[330021980,1718945440264,-500.0,0.00054794,120]
[330021981,1718945440274,-500.0,0.00054794,120]
[330021982,1718945440283,-984.16,0.00054794,120]
[330021983,1718945440293,-500.0,0.00054794,120]
[330021984,1718945440302,-500.0,0.00054794,120]
[330021986,1718945440312,-500.0,0.00054794,120]
[330021988,1718945440322,-500.0,0.00054794,120]
[330021990,1718945440331,-210.85289081,0.00054794,120]
[330021992,1718945440341,-500.0,0.00054794,120]
[330021994,1718945440350,-500.0,0.00054794,120]
[330021996,1718945440360,-641.46,0.00054794,120]
[330021998,1718945440370,-500.0,0.00054794,120]
[330022000,1718945440380,-500.0,0.00054794,120]
[330022002,1718945440389,-500.0,0.00054794,120]
[330022004,1718945440399,-500.0,0.00054794,120]
[330022005,1718945440408,-163.13691605,0.00054794,120]
[330022006,1718945440417,-500.0,0.00054794,120]
[330022007,1718945440427,-902.76,0.00054794,120]
[330022008,1718945440436,-520.66739523,0.00054794,120]
[330022009,1718945440445,-902.76,0.00054794,120]
[330022010,1718945440455,-506.02244042,0.00054794,120]
[330022011,1718945440464,-902.76,0.00054794,120]
[330022013,1718945440474,-902.76,0.00054794,120]
[330022014,1718945440483,-902.76,0.00054794,120]
[330022016,1718945440493,-902.76,0.00054794,120]
[330022017,1718945440514,-500.0,0.00054794,120]
[330022018,1718945440524,-421.52891483,0.00054794,120]
[330022019,1718945440535,-500.0,0.00054794,120]
[330022020,1718945440545,-500.0,0.00054794,120]
[330022021,1718945440555,-500.0,0.00054794,120]
[330022022,1718945440565,-500.0,0.00054794,120]
[330022023,1718945440576,-500.0,0.00054794,120]
[330022024,1718945440586,-575.92704871,0.00054794,120]
[330022025,1718945440596,-500.0,0.00054794,120]
[330022026,1718945440606,-500.0,0.00054794,120]
[330022027,1718945440616,-500.0,0.00054794,120]
[330022028,1718945440626,-500.77693653,0.00054794,120]
[330022029,1718945440636,-500.0,0.00054794,120]
[330022031,1718945440647,-1243.44,0.00054794,120]
[330022033,1718945440657,-500.0,0.00054794,120]
[330022034,1718945440667,-500.0,0.00054794,120]
[330022036,1718945440676,-640.26,0.00054794,120]
[330022038,1718945440687,-500.0,0.00054794,120]
[330022040,1718945440696,-500.0,0.00054794,120]
[330022042,1718945440707,-503.08895905,0.00054794,120]
[330022044,1718945440716,-500.0,0.00054794,120]
[330022045,1718945440726,-502.68946828,0.00054794,120]
[330022046,1718945440736,-699.19,0.00054794,120]
[330022047,1718945440746,-692.46,0.00054794,120]
[330022048,1718945440756,-517.1324249,0.00054794,120]
[330022049,1718945440765,-500.0,0.00054794,120]
[330022051,1718945440775,-500.0,0.00054794,120]
[330022052,1718945440784,-500.0,0.00054794,120]
[330022054,1718945440793,-832.25,0.00054794,120]
[330022055,1718945440803,-514.78525205,0.00054794,120]
[330022056,1718945440813,-521.12488463,0.00054794,120]
[330022057,1718945440823,-503.75592268,0.00054794,120]
[330022058,1718945440833,-2105.57,0.00054794,120]
[330022059,1718945440842,-500.0,0.00054794,120]
[330022060,1718945440852,-2358.8,0.00054794,120]
[330022061,1718945440861,-409.30195055,0.00054794,120]
[330022062,1718945440872,-500.0,0.00054794,120]
[330022063,1718945440881,-519.69134798,0.00054794,120]
[330022064,1718945440891,-501.73278037,0.00054794,7]
[330022065,1718945440900,-500.0,0.00054794,120]
[330022066,1718945440909,-1412.23,0.00054794,120]
[330022067,1718945440920,-500.0,0.00054794,120]
[330022068,1718945440929,-500.0,0.00054794,120]
[330022069,1718945440938,-513.34835531,0.00054794,120]
[330022070,1718945440948,-512.55544132,0.00054794,120]
[330022071,1718945440957,-506.57089271,0.00054794,120]
[330022072,1718945440966,-500.0,0.00054794,120]
[330022073,1718945440975,-500.0,0.00054794,120]
[330022074,1718945440985,-519.51581409,0.00054794,120]
[330022075,1718945440995,-605.57131963,0.00054794,120]
[330022076,1718945441004,-500.0,0.00054794,120]
[330022077,1718945441013,-536.09412772,0.00054794,120]
[330022078,1718945441023,-512.2394021,0.00054794,120]
[330022079,1718945441032,-500.0,0.00054794,120]
[330022080,1718945441042,-500.0,0.00054794,120]
[330022081,1718945441051,-500.0,0.00054794,120]
[330022082,1718945441060,-502.920258,0.00054794,120]
[330022083,1718945441071,-499.44315468,0.00054794,120]
[330022084,1718945441083,-613.540955,0.00054794,120]
[330022085,1718945441092,-500.0,0.00054794,7]
[330022086,1718945441101,-500.0,0.00054794,120]
[330022087,1718945441111,-507.08135216,0.00054794,120]
[330022088,1718945441122,-508.60501128,0.00054794,120]
[330022089,1718945441132,-872.04,0.00054794,120]
[330022090,1718945441141,-556.84518582,0.00054794,120]
[330022091,1718945441152,-500.0,0.00054794,2]
[330022092,1718945441265,-500.0,0.00054794,120]
[330022093,1718945441276,-500.0,0.00054794,120]
[330022094,1718945441285,-503.77084741,0.00054794,120]
[330022095,1718945441295,-511.74704674,0.00054794,120]
[330022096,1718945441304,-500.0,0.00054794,120]
[330022097,1718945441314,-500.0,0.00054794,120]
[330022098,1718945441323,-500.0,0.00054794,120]
[330022099,1718945441333,-500.0,0.00054794,120]
[330022100,1718945441342,-500.0,0.00054794,120]
[330022101,1718945441351,-507.65441603,0.00054794,120]
[330022102,1718945441360,-216.28661528,0.00054794,120]
[330022103,1718945441371,-9995.93,0.00054794,120]
[330022104,1718945441380,-500.0,0.00054794,120]
[330022105,1718945441389,-9995.93,0.00054794,120]
[330022106,1718945441399,-599.00344374,0.00054794,120]
[330022107,1718945441408,-9995.93,0.00054794,120]
[330022108,1718945441417,-9995.93,0.00054794,120]
[330022109,1718945441426,-9995.93,0.00054794,120]
[330022110,1718945441436,-9995.93,0.00054794,120]
[330022111,1718945441446,-9995.93,0.00054794,120]
[330022112,1718945441455,-9995.93,0.00054794,120]
[330022113,1718945441465,-500.0,0.00054794,120]
[330022114,1718945441474,-9995.93,0.00054794,120]
[330022115,1718945441483,-9995.93,0.00054794,120]
[330022116,1718945441492,-6132.21,0.00054794,120]
[330022117,1718945441501,-9995.93,0.00054794,120]
[330022118,1718945441511,-9995.93,0.00054794,120]
[330022119,1718945441520,-9995.93,0.00054794,120]
[330022120,1718945441529,-9995.93,0.00054794,120]
[330022121,1718945441538,-9995.93,0.00054794,120]
[330022122,1718945441547,-169.39828281,0.00054794,120]
[330022123,1718945441557,-2879.13,0.00054794,120]
[330022124,1718945441565,-500.0,0.00054794,120]
[330022125,1718945441575,-500.0,0.00054794,120]
[330022126,1718945441585,-510.1346197,0.00054794,120]
[330022127,1718945441594,-500.0,0.00054794,120]
[330022128,1718945441603,-500.0,0.00054794,120]
[330022129,1718945441612,-1641.54,0.00054794,120]
[330022130,1718945441623,-500.03,0.00054794,120]
[330022131,1718945441632,-566.1,0.00054794,120]
[330022132,1718945441642,-500.0,0.00054794,120]
[330022133,1718945441651,-500.0,0.00054794,120]
[330022134,1718945441661,-500.0,0.00054794,120]
[330022135,1718945441671,-500.0,0.00054794,120]
[330022136,1718945441680,-500.0,0.00054794,120]
[330022137,1718945441689,-500.0,0.00054794,60]
[330022138,1718945441698,-500.0,0.00054794,120]
[330022139,1718945441707,-500.0,0.00054794,120]
[330022140,1718945441716,-500.0,0.00054794,120]
[330022141,1718945441725,-500.0,0.00054794,120]
[330022142,1718945441735,-500.0,0.00054794,120]
[330022143,1718945441744,-500.0,0.00054794,120]
[330022144,1718945441753,-379.18518755,0.00054794,120]
[330022145,1718945441762,-1573.84,0.00054794,120]
[330022146,1718945441772,-1781.32,0.00054794,120]
[330022147,1718945441781,-500.0,0.00054794,120]
[330022148,1718945441791,-500.0,0.00054794,120]
[330022149,1718945441800,-502.62026137,0.00054794,120]
[330022150,1718945441809,-500.0,0.00054794,120]
[330022151,1718945441818,-242.79909904,0.00054794,120]
[330022152,1718945441828,-500.0,0.00054794,120]
[330022153,1718945441837,-500.0,0.00054794,120]
[330022154,1718945441846,-500.0,0.00054794,120]
[330022155,1718945441855,-500.0,0.00054794,120]
[330022156,1718945441865,-500.0,0.00054794,120]
[330022157,1718945441874,-501.29848404,0.00054794,120]
[330022158,1718945441883,-588.19,0.00054794,120]
[330022159,1718945441892,-869.94,0.00054794,120]
[330022160,1718945441901,-668.98,0.00054794,120]
[330022161,1718945441911,-6744.43,0.00054794,120]
[330022162,1718945441920,-15912.75,0.00054794,120]
[330022163,1718945441930,-501.92561853,0.00054794,120]
[330022164,1718945441939,-500.0,0.00054794,120]
[330022165,1718945441949,-1303.48,0.00054794,120]
[330022166,1718945441958,-500.0,0.00054794,120]
[330022167,1718945441968,-500.0,0.00054794,120]
[330022168,1718945441979,-500.0,0.00054794,120]
[330022169,1718945441988,-500.0,0.00054794,120]
[330022170,1718945441997,-500.0,0.00054794,120]
[330022171,1718945442006,-43271.65,0.00054794,120]
[330022172,1718945442016,-500.0,0.00054794,120]
[330022173,1718945442025,-1085.15,0.00054794,120]
[330022174,1718945442034,-500.0,0.00054794,90]
[330022175,1718945442043,-500.0,0.00054794,120]
[330022176,1718945442052,-500.0,0.00054794,120]
[330022177,1718945442061,-803.86,0.00054794,120]
[330022178,1718945442071,-272.11923036,0.00054794,120]
[330022179,1718945442084,-625.25,0.00054794,120]
[330022180,1718945442093,-500.0,0.00054794,120]
[330022181,1718945442103,-1340.55,0.00054794,120]
[330022182,1718945442112,-4445.27,0.00054794,21]
[330022183,1718945442122,-518.87465102,0.00054794,120]
[330022184,1718945442132,-25137.04,0.00054794,120]
[330022185,1718945442141,-500.0,0.00054794,120]
[330022186,1718945442151,-9193.65,0.00054794,120]
[330022187,1718945442163,-533.52638219,0.00054794,120]
[330022188,1718945442173,-1000.0,0.00054794,120]
[330022189,1718945442183,-1145.0,0.00054794,120]
[330022190,1718945442193,-500.0,0.00054794,120]
[330022191,1718945442202,-758.94,0.00054794,120]
[330022192,1718945442211,-500.0,0.00054794,120]
[330022193,1718945442220,-500.0,0.00054794,120]
[330022194,1718945442230,-500.0,0.00054794,120]
[330022195,1718945442239,-666.05,0.00054794,120]
[330022196,1718945442249,-735.84,0.00054794,120]
[330022197,1718945442258,-1000.0,0.00054794,14]
[330022198,1718945442268,-500.0,0.00054794,120]
[330022199,1718945442278,-1635.34,0.00054794,120]
[330022200,1718945442288,-1175.35,0.00054794,120]
[330022201,1718945442297,-506.97412183,0.00054794,120]
[330022202,1718945442306,-500.0,0.00054794,120]
[330022203,1718945442315,-561.8,0.00054794,120]
[330022204,1718945442325,-2004.36,0.00054794,120]
[330022205,1718945442335,-500.0,0.00054794,120]
[330022206,1718945442344,-500.79679889,0.00054794,120]
[330022207,1718945442353,-502.02218571,0.00054794,120]
[330022208,1718945442363,-2653.74,0.00054794,120]
[330022209,1718945442373,-2825.09,0.00054794,120]
[330022210,1718945442383,-500.0,0.00054794,20]
[330022211,1718945442391,-500.0,0.00054794,120]
[330022212,1718945442402,-500.0,0.00054794,120]
[330022213,1718945442411,-500.0,0.00054794,120]
[330022214,1718945442421,-500.0,0.00054794,120]
[330022215,1718945442431,-1320.64,0.00054794,120]
[330022216,1718945442440,-1155.67,0.00054794,120]
[330022217,1718945442450,-1590.39,0.00054794,120]
[330022218,1718945442459,-500.0,0.00054794,120]
[330022219,1718945442468,-507.39519876,0.00054794,120]
[330022220,1718945442477,-500.0,0.00054794,120]
[330022221,1718945442487,-7751.05,0.00054794,120]
[330022222,1718945442496,-1900.5,0.00054794,120]
[330022223,1718945442505,-1861.69,0.00054794,120]
[330022224,1718945442514,-615.18,0.00054794,120]
[330022225,1718945442523,-500.0,0.00054794,120]
[330022226,1718945442532,-528.83690298,0.00054794,120]
[330022227,1718945442542,-675.96,0.00054794,120]
[330022228,1718945442551,-590.515982,0.00054794,120]
[330022229,1718945442561,-500.0,0.00054794,120]
[330022230,1718945442570,-516.58,0.00054794,120]
[330022231,1718945442579,-500.0,0.00054794,120]
[330022232,1718945442589,-567.22908273,0.00054794,120]
[330022233,1718945442598,-500.0,0.00054794,120]
[330022234,1718945442608,-500.0,0.00054794,120]
[330022235,1718945442618,-781.33,0.00054794,120]
[330022236,1718945442628,-505.5880634,0.00054794,120]
[330022237,1718945442638,-862.7,0.00054794,120]
[330022238,1718945442650,-160.51392683,0.00054794,120]
[330022239,1718945442659,-728.53,0.00054794,120]
[330022240,1718945442670,-3889.96,0.00054794,120]
[330022241,1718945442679,-500.0,0.00054794,120]
[330022242,1718945442689,-615.01,0.00054794,120]
[330022243,1718945442698,-615.01,0.00054794,120]
[330022244,1718945442708,-500.0,0.00054794,120]
[330022245,1718945442717,-615.01,0.00054794,120]
[330022246,1718945442727,-615.01,0.00054794,120]
[330022247,1718945442736,-615.01,0.00054794,120]
[330022248,1718945442746,-615.01,0.00054794,120]
[330022249,1718945442755,-615.01,0.00054794,120]
[330022250,1718945442766,-615.01,0.00054794,120]
[330022251,1718945442775,-615.01,0.00054794,120]
[330022252,1718945442784,-615.01,0.00054794,120]
[330022253,1718945442793,-615.01,0.00054794,120]
[330022254,1718945442802,-615.01,0.00054794,120]
[330022255,1718945442811,-615.01,0.00054794,120]
[330022256,1718945442820,-615.01,0.00054794,120]
[330022257,1718945442830,-1828.68,0.00054794,120]
[330022258,1718945442839,-615.01,0.00054794,120]
[330022259,1718945442921,-572.87,0.00054794,120]
[330022260,1718945442931,-500.0,0.00054794,120]
[330022261,1718945442940,-500.0,0.00054794,120]
[330022262,1718945442950,-2038.3,0.00054794,120]
[330022263,1718945442959,-500.0,0.00054794,120]
[330022264,1718945442968,-500.0,0.00054794,120]
[330022265,1718945442977,-1861.34,0.00054794,120]
[330022266,1718945442986,-500.0,0.00054794,120]
[330022267,1718945442995,-1234.54,0.00054794,120]
[330022268,1718945443005,-500.0,0.00054794,120]
[330022269,1718945443014,-504.12202885,0.00054794,120]
[330022270,1718945443023,-501.55239601,0.00054794,120]
[330022271,1718945443032,-504.32063269,0.00054794,120]
[330022272,1718945443042,-1000.0,0.00054794,120]
[330022273,1718945443051,-464.1985087,0.00054794,120]
[330022274,1718945443061,-2619.8,0.00054794,120]
[330022275,1718945443070,-500.0,0.00054794,120]
[330022276,1718945443082,-500.0,0.00054794,120]
[330022277,1718945443091,-552.88409631,0.00054794,120]
[330022278,1718945443101,-346.75449246,0.00054794,120]
[330022279,1718945443110,-5074.52,0.00054794,120]
[330022280,1718945443120,-500.0,0.00054794,120]
[330022281,1718945443129,-500.0,0.00054794,120]
[330022282,1718945443138,-926.45,0.00054794,120]
[330022283,1718945443147,-500.0,0.00054794,120]
[330022285,1718945443158,-500.0,0.00054794,120]
[330022287,1718945443168,-500.0,0.00054794,120]
[330022289,1718945443177,-628.47,0.00054794,120]
[330022291,1718945443186,-500.0,0.00054794,120]
[330022293,1718945443195,-201.80258211,0.00054794,7]
[330022296,1718945443204,-1000.0,0.00054794,120]
[330022297,1718945443213,-1000.0,0.00054794,120]
[330022299,1718945443222,-1000.0,0.00054794,120]
[330022301,1718945443231,-1000.0,0.00054794,120]
[330022304,1718945443242,-500.0,0.00054794,120]
[330022305,1718945443252,-1000.0,0.00054794,120]
[330022307,1718945443261,-500.0,0.00054794,120]
[330022309,1718945443270,-3000.0,0.00054794,120]
[330022312,1718945443279,-1000.0,0.00054794,120]
[330022315,1718945443288,-1000.0,0.00054794,120]
[330022318,1718945443297,-1198.69,0.00054798,120]
[330022320,1718945443306,-9995.93,0.00054799,120]
[330022322,1718945443315,-9995.93,0.00054799,120]
[330022324,1718945443324,-1198.69,0.00054799,120]
[330022327,1718945443333,-615.01,0.00054799,120]
[330022330,1718945443342,-615.01,0.00054799,120]
[330022333,1718945443352,-58937.21373142,0.000548,86]
[330022336,1718945443361,-501.0,0.00054869,120]
[330022338,1718945443371,-150.0,0.00054869,120]
[330022341,1718945443380,-789.881,0.00054869,2]
[330022344,1718945443389,-9995.93,0.00054873,120]
[330022347,1718945443398,-1198.69,0.00054873,120]
[330022350,1718945443407,-615.01,0.00054873,120]
[330022353,1718945443416,-902.76,0.00054874,120]
[330022356,1718945443426,-9995.93,0.00054874,120]
[330022359,1718945443435,-1198.69,0.00054874,120]
[330022362,1718945443444,-344.76929351,0.00054874,120]
[330022382,1718945443534,-936.97146555,0.00054299,40]
[330022383,1718945443543,-1000.0,0.00054794,120]
[330022384,1718945443552,-1000.0,0.00054794,120]
[330022385,1718945443561,-1000.0,0.00054794,120]
[330022386,1718945443570,-1000.0,0.00054794,120]
[330022387,1718945443579,-1000.0,0.00054794,120]
[330022388,1718945443588,-1000.0,0.00054794,120]
[330022389,1718945443597,-1000.0,0.00054794,120]
[330022390,1718945443607,-270.24070649,0.00054874,120]
[330022391,1718945443616,-151.502714,0.00054874,120]
[330022392,1718945443625,-902.76,0.00054875,120]
[330022393,1718945443634,-401.27011644,0.00054875,120]
[330022394,1718945443645,-501.48988356,0.00054875,120]
[330022395,1718945443654,-902.76,0.00054875,120]
[330022396,1718945443664,-902.76,0.00054875,120]
[330022397,1718945443673,-151.0,0.00054875,120]
[330022398,1718945443682,-290.274919,0.00054875,120]
[330022399,1718945443691,-151.0,0.00054875,120]
[330022400,1718945443700,-151.0,0.00054875,120]
[330022401,1718945443710,-5071.22966915,0.00054875,120]
[330022404,1718945443877,-406.41093605,0.00054784,3]
[330022406,1718945443888,-1515.16952978,0.00054784,3]
[330022420,1718945446965,-1610.05953417,0.00054784,3]
[330022421,1718945446975,-1000.0,0.00054794,120]
[330022422,1718945446984,-1000.0,0.00054794,120]
[330022423,1718945446993,-1000.0,0.00054794,120]
[330022424,1718945447002,-469.96348644,0.00054794,120]
[330022425,1718945447043,-530.03651356,0.00054794,120]
[330022426,1718945447052,-1000.0,0.00054794,120]
[330022427,1718945447061,-1000.0,0.00054794,120]
[330022428,1718945447071,-1000.0,0.00054794,120]
[330022429,1718945447083,-197.01619943,0.00054794,120]
[330022430,1718945447093,-2368.15,0.00054794,120]
[330022431,1718945447102,-5876.7,0.00054794,120]
[330022432,1718945447111,-500.0,0.00054794,120]
[330022433,1718945447121,-4924.70033085,0.00054875,120]
[330022434,1718945447132,-9995.93,0.00054875,120]
[330022435,1718945447142,-9995.93,0.00054875,120]
[330022436,1718945447151,-9995.93,0.00054875,120]
[330022437,1718945447163,-8395.69178691,0.00054875,120]
[330022438,1718945447174,-1600.34549843,0.00054875,120]
[330022439,1718945447183,-151.0,0.00054875,120]
[330022440,1718945447192,-151.0,0.00054875,120]
[330022441,1718945447202,-151.0,0.00054875,120]
[330022442,1718945447285,-1198.69,0.00054875,120]
[330022443,1718945447295,-1198.69,0.00054875,120]
[330022444,1718945447305,-1198.69,0.00054875,120]
[330022445,1718945447314,-1198.69,0.00054875,120]
[330022446,1718945447323,-1198.69,0.00054875,120]
[330022447,1718945447332,-1198.69,0.00054875,120]
[330022448,1718945447342,-151.0,0.00054875,120]
[330022449,1718945447351,-615.01,0.00054875,120]
[330022450,1718945447360,-615.01,0.00054875,120]
[330022451,1718945447369,-615.01,0.00054875,120]
[330022452,1718945447379,-615.01,0.00054875,120]
[330022453,1718945447388,-615.2344566,0.00054875,120]
[330022454,1718945447397,-151.0,0.00054875,120]
[330022455,1718945447408,-500.0,0.00054876,120]
[330022456,1718945447417,-500.0,0.00054876,120]
[330022457,1718945447427,-993.76,0.00054876,120]
[330022458,1718945447437,-167.29857194,0.00054876,120]
[330022459,1718945447446,-510.51860305,0.00054876,120]
[330022460,1718945447456,-2000.0,0.00054876,5]
[330022461,1718945447470,-500.0,0.00054876,120]
[330022462,1718945447479,-500.0,0.00054876,120]
[330022463,1718945447489,-500.0,0.00054876,120]
[330022464,1718945447498,-500.0,0.00054876,120]
[330022465,1718945447508,-391.44688738,0.00054876,120]
[330022466,1718945447518,-500.0,0.00054876,120]
[330022467,1718945447527,-507.69361822,0.00054876,120]
[330022468,1718945447536,-511.88328431,0.00054876,120]
[330022469,1718945447546,-500.0,0.00054876,120]
[330022470,1718945447555,-500.0,0.00054876,120]
[330022471,1718945447564,-500.0,0.00054876,120]
[330022472,1718945447573,-364.75902806,0.00054876,120]
[330022473,1718945447583,-500.0,0.00054876,120]
[330022474,1718945447592,-500.0,0.00054876,120]
[330022475,1718945447603,-500.0,0.00054876,120]
[330022476,1718945447612,-688.74,0.00054876,120]
[330022477,1718945447622,-500.0,0.00054876,120]
[330022478,1718945447631,-500.0,0.00054876,120]
[330022479,1718945447641,-500.0,0.00054876,120]
[330022480,1718945447650,-500.0,0.00054876,120]
[330022481,1718945447659,-500.0,0.00054876,120]
[330022482,1718945447669,-500.0,0.00054876,120]
[330022483,1718945447678,-500.0,0.00054876,120]
[330022484,1718945447687,-500.0,0.00054876,120]
[330022485,1718945447696,-500.0,0.00054876,120]
[330022486,1718945447705,-151.0,0.00054876,120]
[330022487,1718945447715,-109.22878826,0.00054876,120]
[330022488,1718945447824,-140.77121174,0.00054876,120]
[330022489,1718945447834,-500.0,0.00054876,120]
[330022490,1718945447843,-151.0,0.00054876,120]
[330022491,1718945447853,-500.0,0.00054876,30]
[330022492,1718945447864,-336.79972314,0.00054876,120]
[330022493,1718945447873,-151.0,0.00054876,120]
[330022494,1718945447883,-151.0,0.00054876,120]
[330022495,1718945447892,-502.51933163,0.00054876,120]
[330022496,1718945447901,-500.0,0.00054876,120]
[330022497,1718945447912,-500.0,0.00054876,120]
[330022498,1718945447922,-500.0,0.00054876,120]
[330022499,1718945447932,-525.4,0.00054876,120]
[330022500,1718945447941,-500.0,0.00054876,120]
[330022501,1718945447951,-667.28,0.00054876,120]
[330022502,1718945447960,-1382.84,0.00054876,120]
[330022503,1718945447970,-1613.29,0.00054876,120]
[330022504,1718945447979,-500.0,0.00054876,120]
[330022505,1718945447989,-511.44162009,0.00054876,120]
[330022506,1718945447998,-500.0,0.00054876,120]
[330022507,1718945448008,-246.26937,0.00054876,120]
[330022508,1718945448017,-246.26937,0.00054876,120]
[330022509,1718945448026,-553.23856573,0.00054876,120]
[330022510,1718945448035,-504.59,0.00054876,120]
[330022511,1718945448045,-984.16,0.00054876,120]
[330022512,1718945448054,-500.0,0.00054876,120]
[330022513,1718945448063,-641.46,0.00054876,120]
[330022514,1718945448073,-500.0,0.00054876,120]
[330022515,1718945448088,-500.0,0.00054876,120]
[330022516,1718945448097,-500.0,0.00054876,120]
[330022517,1718945448106,-500.0,0.00054876,120]
[330022518,1718945448116,-500.0,0.00054876,120]
[330022519,1718945448128,-500.0,0.00054876,120]
[330022520,1718945448137,-500.0,0.00054876,120]
[330022521,1718945448147,-513.85711662,0.00054876,120]
[330022522,1718945448159,-500.0,0.00054876,120]
[330022523,1718945448168,-151.0,0.00054876,120]
[330022524,1718945448177,-512.28712344,0.00054876,120]
[330022525,1718945448186,-1243.44,0.00054876,120]
[330022526,1718945448195,-500.0,0.00054876,120]
[330022527,1718945448204,-503.58619175,0.00054876,120]
[330022528,1718945448213,-640.26,0.00054876,120]
[330022529,1718945448223,-500.0,0.00054876,120]
[330022530,1718945448232,-699.19,0.00054876,120]
[330022531,1718945448242,-692.46,0.00054876,120]
[330022532,1718945448251,-151.0,0.00054876,120]
[330022533,1718945448261,-500.0,0.00054876,120]
[330022534,1718945448271,-500.0,0.00054876,120]
[330022535,1718945448280,-832.25,0.00054876,120]
[330022536,1718945448288,-2105.57,0.00054876,120]
[330022537,1718945448298,-500.0,0.00054876,120]
[330022538,1718945448308,-2358.8,0.00054876,120]
[330022539,1718945448317,-209.25015,0.00054876,120]
[330022540,1718945448328,-500.0,0.00054876,120]
[330022541,1718945448338,-1412.23,0.00054876,120]
[330022542,1718945448347,-515.87775531,0.00054876,120]
[330022543,1718945448356,-584.13758548,0.00054876,120]
[330022544,1718945448366,-150.58206987,0.00054876,120]
[330022545,1718945448378,-500.0,0.00054876,120]
[330022546,1718945448387,-500.0,0.00054876,120]
[330022547,1718945448396,-500.0,0.00054876,120]
[330022548,1718945448405,-500.0,0.00054876,120]
[330022549,1718945448414,-500.0,0.00054876,7]
[330022550,1718945448423,-500.0,0.00054876,120]
[330022551,1718945448433,-872.04,0.00054876,120]
[330022552,1718945448442,-265.641325,0.00054876,120]
[330022553,1718945448452,-500.0,0.00054876,2]
[330022554,1718945448461,-500.0,0.00054876,120]
[330022555,1718945448471,-265.641325,0.00054876,120]
[330022556,1718945448480,-500.0,0.00054876,120]
[330022557,1718945448489,-151.0,0.00054876,120]
[330022558,1718945448499,-151.0,0.00054876,120]
[330022559,1718945448508,-500.0,0.00054876,120]
[330022560,1718945448517,-500.0,0.00054876,120]
[330022561,1718945448527,-151.0,0.00054876,120]
[330022562,1718945448536,-151.0,0.00054876,120]
[330022563,1718945448546,-500.0,0.00054876,120]
[330022564,1718945448555,-151.0,0.00054876,120]
[330022565,1718945448641,-500.0,0.00054876,120]